[Event "Vienna Chess Open 2019"]
[Site "Vienna"]
[Date "2019.08.21"]
[Round "6.3"]
[White "Abdumalik, Zhansaya"]
[Black "Muckle, Julius"]
[Result "1/2-1/2"]
[ECO "C11"]
[WhiteElo "2457"]
[BlackElo "2368"]
[Annotator "ChessBase"]
[PlyCount "242"]
[EventDate "2019.08.17"]
[EventType "swiss"]
[EventCountry "AUT"]
[SourceTitle "playchess.com"]
[Source "ChessBase"]
[SourceQuality "1"]
[TimeControl "40/5400+30:1800+30"]

1. e4 {[%emt 0:00:00]} e6 {[%emt 0:00:04]} 2. d4 {[%emt 0:00:00]} d5 {[%emt 0:00:08]} 3. Nc3 {[%emt 0:00:00]} Nf6 {[%emt 0:00:07]} 4. e5 {[%emt 0:00:15]} Nfd7 {[%emt 0:00:06]} 5. f4 {[%emt 0:00:10]} c5 {[%emt 0:00:01]} 6. Nf3 {[%emt 0:00:13]} Nc6 {[%emt 0:00:05]} 7. Be3 {[%emt 0:00:29]} Be7 {[%emt 0:00:05]} 8. Qd2 {[%emt 0:00:11]} O-O {[%emt 0:00:07]} 9. dxc5 {[%emt 0:01:03]} Qa5 {[%emt 0:00:06]} 10. Be2 {[%emt 0:00:07]} Bxc5 {[%emt 0:01:20]} 11. a3 {[%emt 0:04:12]} a6 {[%emt 0:05:51]} 12. O-O {[%emt 0:05:47]} f6 {[%emt 0:23:24]} 13. b4 {[%emt 0:12:26]} Bxe3+ {[%emt 0:02:39]} 14. Qxe3 {[%emt 0:00:06]} Qc7 {[%emt 0:00:44]} 15. exf6 {[%emt 0:04:25]} Nxf6 {[%emt 0:00:24]} 16. Nd4 {[%emt 0:06:24]} Nxd4 {[%emt 0:09:09]} 17. Qxd4 {[%emt 0:00:06]} Bd7 {[%emt 0:00:05]} 18. Bd3 {[%emt 0:04:10]} Rac8 {[%emt 0:01:14]} 19. Ne2 {[%emt 0:03:37]} Rfe8 {[%emt 0:08:05]} 20. Ng3 {[%emt 0:12:20]} Bb5 {[%emt 0:03:26]} 21. Rfe1 {[%emt 0:02:34]} Qc3 {[%emt 0:03:39]} 22. Qxc3 {[%emt 0:07:14]} Rxc3 {[%emt 0:00:02]} 23. Ne2 {[%emt 0:00:08]} Rc7 {[%emt 0:00:41]} 24. Bxb5 {[%emt 0:02:59]} axb5 {[%emt 0:00:01]} 25. Nd4 {[%emt 0:00:11]} Ne4 {[%emt 0:15:40]} 26. Rad1 {[%emt 0:02:38]} Rc3 {[%emt 0:10:01]} 27. f5 {[%emt 0:03:15]} exf5 {[%emt 0:02:22]} 28. Nxf5 {[%emt 0:00:34]} g6 {[%emt 0:06:34]} 29. Nd4 {[%emt 0:03:03]} Rf8 {[%emt 0:01:28]} 30. Rd3 {[%emt 0:04:17]} Rc4 {[%emt 0:02:18]} 31. Re2 {[%emt 0:02:03]} Nc3 {[%emt 0:01:21]} 32. Ree3 {[%emt 0:03:57]} Ne4 {[%emt 0:01:10]} 33. Rf3 {[%emt 0:00:16]} Rxf3 {[%emt 0:01:05]} 34. gxf3 {[%emt 0:00:13]} Nd6 {[%emt 0:00:34]} 35. Kf2 {[%emt 0:05:36]} Kf7 {[%emt 0:00:00]} 36. c3 {[%emt 0:00:55]} Kf6 {[%emt 0:02:15]} 37. Re3 Kf7 38. Re5 {[%emt 0:07:22]} Rxc3 {[%emt 0:01:21]} 39. Rxd5 {[%emt 0:00:18]} Nc4 {[%emt 0:00:45]} 40. Nxb5 {[%emt 0:03:13]} Rc2+ {[%emt 0:00:14]} 41. Kg3 {[%emt 0:31:54]} Ne3 {[%emt 0:00:54]} 42. Rd7+ {[%emt 0:00:00]} Kf6 {[%emt 0:00:23]} 43. Rd6+ {[%emt 0:00:00]} Kf7 {[%emt 0:16:21]} 44. Rb6 {[%emt 0:00:00]} Rg2+ {[%emt 0:01:31]} 45. Kh3 {[%emt 0:00:00]} Rg1 {[%emt 0:02:21]} 46. Nc3 {[%emt 0:00:00]} g5 {[%emt 0:02:10]} 47. Rxb7+ {[%emt 0:00:00]} Kg6 {[%emt 0:00:12]} 48. Rb6+ {[%emt 0:00:00]} Kg7 {[%emt 0:01:26]} 49. Re6 {[%emt 0:00:00]} Nc2 {[%emt 0:05:26]} 50. Ne2 {[%emt 0:00:00]} Rf1 {[%emt 0:01:08]} 51. Kg4 {[%emt 0:00:00]} Nxa3 {[%emt 0:00:18]} 52. Ng3 {[%emt 0:00:00]} Rf2 {[%emt 0:00:32]} 53. Nf5+ {[%emt 0:00:00]} Kf7 {[%emt 0:02:27]} 54. Re7+ {[%emt 0:01:04]} Kg6 {[%emt 0:00:44]} 55. Rg7+ Kf6 56. Rxh7 {[%emt 0:00:23]} Nc2 {[%emt 0:00:45]} 57. b5 {[%emt 0:01:04]} Rg2+ {[%emt 0:00:20]} 58. Ng3 {[%emt 0:01:47]} Ne3+ {[%emt 0:00:06]} 59. Kh3 {[%emt 0:00:03]} Rb2 {[%emt 0:00:23]} 60. b6 {[%emt 0:01:15]} Nd5 {[%emt 0:01:00]} 61. Rh6+ {[%emt 0:01:36]} Ke5 {[%emt 0:00:59]} 62. Kg4 {[%emt 0:00:28]} Nxb6 {[%emt 0:00:01]} 63. Kxg5 {[%emt 0:00:59]} Nd5 {[%emt 0:00:01]} 64. Rh4 {[%emt 0:00:34]} Rf2 {[%emt 0:01:02]} 65. Re4+ {[%emt 0:01:31]} Kd6 {[%emt 0:00:03]} 66. Nf5+ {[%emt 0:00:53]} Kd7 {[%emt 0:00:15]} 67. h4 {[%emt 0:00:35]} Rxf3 {[%emt 0:00:17]} 68. h5 {[%emt 0:00:37]} Rf1 {[%emt 0:00:37]} 69. Nh6 {[%emt 0:01:15]} Nf6 {[%emt 0:01:54]} 70. Re2 {[%emt 0:00:56]} Nxh5 {[%emt 0:00:30]} 71. Kxh5 {[%emt 0:00:04]} Rg1 {[%emt 0:00:19]} 72. Ng4 {[%emt 0:00:04]} Kd6 {[%emt 0:00:07]} 73. Rd2+ {[%emt 0:00:13]} Kc5 {[%emt 0:00:14]} 74. Kg5 {[%emt 0:00:05]} Rf1 {[%emt 0:00:02]} 75. Ne5 {[%emt 0:00:41]} Kb4 {[%emt 0:00:20]} 76. Rc2 {[%emt 0:00:10]} Kb3 {[%emt 0:00:11]} 77. Rc7 {[%emt 0:00:12]} Kb4 {[%emt 0:00:09]} 78. Nd3+ {[%emt 0:00:09]} Kb5 {[%emt 0:00:02]} 79. Nf4 {[%emt 0:00:06]} Re1 {[%emt 0:00:12]} 80. Kf5 {[%emt 0:00:06]} Re3 {[%emt 0:00:21]} 81. Rc1 {[%emt 0:00:13]} Ka4 {[%emt 0:00:26]} 82. Nd5 {[%emt 0:00:23]} Re8 {[%emt 0:00:13]} 83. Rb1 {[%emt 0:00:11]} Ka3 {[%emt 0:00:14]} 84. Rb7 {[%emt 0:00:24]} Re2 {[%emt 0:00:19]} 85. Kf4 {[%emt 0:00:36]} Re6 {[%emt 0:00:11]} 86. Ne3 {[%emt 0:00:25]} Ka4 {[%emt 0:00:10]} 87. Kf3 {[%emt 0:00:11]} Ka5 {[%emt 0:00:13]} 88. Rb1 {[%emt 0:00:23]} Ka6 {[%emt 0:00:06]} 89. Nc4 {[%emt 0:00:28]} Re7 {[%emt 0:00:59]} 90. Kf4 {[%emt 0:00:36]} Re6 {[%emt 0:00:50]} 91. Ne5 {[%emt 0:00:09]} Rb6 {[%emt 0:00:20]} 92. Ra1+ {[%emt 0:00:05]} Kb7 {[%emt 0:00:04]} 93. Ke4 {[%emt 0:00:13]} Rd6 {[%emt 0:00:18]} 94. Nf3 {[%emt 0:01:28]} Ra6 {[%emt 0:00:22]} 95. Rh1 {[%emt 0:00:08]} Ra5 {[%emt 0:00:13]} 96. Nd4 {[%emt 0:00:13]} Kc7 {[%emt 0:00:15]} 97. Rh6 {[%emt 0:00:17]} Kd7 {[%emt 0:00:10]} 98. Nc6 {[%emt 0:00:21]} Rb5 {[%emt 0:00:32]} 99. Ne5+ {[%emt 0:00:12]} Kc7 {[%emt 0:00:37]} 100. Kd4 {[%emt 0:00:03]} Rb1 {[%emt 0:00:16]} 101. Kc5 {[%emt 0:00:12]} Rc1+ {[%emt 0:00:11]} 102. Nc4 {[%emt 0:00:03]} Kd7 {[%emt 0:00:08]} 103. Kb5 {[%emt 0:02:12]} Ke7 {[%emt 0:00:22]} 104. Ne5 {[%emt 0:00:08]} Rc2 {[%emt 0:00:23]} 105. Nc6+ {[%emt 0:00:14]} Kf7 {[%emt 0:00:15]} 106. Kb6 {[%emt 0:00:06]} Kg7 {[%emt 0:00:25]} 107. Rd6 {[%emt 0:00:06]} Rf2 {[%emt 0:00:14]} 108. Kc7 {[%emt 0:00:04]} Rf6 {[%emt 0:00:15]} 109. Rd5 {[%emt 0:00:01]} Rf1 {[%emt 0:00:47]} 110. Kd7 {[%emt 0:00:08]} Kf6 {[%emt 0:00:26]} 111. Ne7 {[%emt 0:00:11]} Rf2 {[%emt 0:00:35]} 112. Kd6 {[%emt 0:00:31]} Rf1 {[%emt 0:00:26]} 113. Rh5 {[%emt 0:00:15]} Rd1+ {[%emt 0:00:39]} 114. Nd5+ {[%emt 0:00:02]} Kg6 {[%emt 0:00:12]} 115. Re5 {[%emt 0:00:03]} Rd4 {[%emt 0:01:36]} 116. Ke6 {[%emt 0:00:08]} Ra4 {[%emt 0:00:29]} 117. Ne7+ {[%emt 0:00:33]} Kh6 {[%emt 0:01:04]} 118. Kf6 {[%emt 0:01:46]} Rf4+ {[%emt 0:00:24]} 119. Nf5+ {[%emt 0:00:03]} Kh5 {[%emt 0:00:23]} 120. Re3 {[%emt 0:00:10]} Rf2 {[%emt 0:01:52]} 121. Rg3 {[%emt 0:00:16]} Rf1 {[%emt 0:01:30]} 1/2-1/2

[Event "Vienna Chess Open 2019"]
[Site "Vienna"]
[Date "2019.08.21"]
[Round "6.3"]
[White "Schwabeneder, Florian"]
[Black "Sadilek, Peter"]
[Result "1-0"]
[ECO "A05"]
[WhiteElo "2404"]
[BlackElo "2283"]
[Annotator "ChessBase"]
[PlyCount "91"]
[EventDate "2019.08.17"]
[EventType "swiss"]
[EventCountry "AUT"]
[SourceTitle "playchess.com"]
[Source "ChessBase"]
[SourceQuality "1"]
[TimeControl "40/5400+30:1800+30"]

1. Nf3 {[%emt 0:00:00]} Nf6 {[%emt 0:06:51]} 2. g3 {[%emt 0:00:02]} g6 {[%emt 0:03:55]} 3. b3 {[%emt 0:01:08]} Bg7 {[%emt 0:00:04]} 4. Bb2 {[%emt 0:00:08]} d6 {[%emt 0:03:14]} 5. d4 {[%emt 0:01:54]} c5 {[%emt 0:02:33]} 6. Bg2 {[%emt 0:15:49]} O-O {[%emt 0:08:36]} 7. c4 {[%emt 0:04:00]} Ne4 {[%emt 0:10:34]} 8. O-O {[%emt 0:04:58]} Nc6 {[%emt 0:04:11]} 9. h3 {[%emt 0:05:33]} cxd4 {[%emt 0:09:17]} 10. Nxd4 {[%emt 0:00:34]} Qb6 {[%emt 0:01:01]} 11. e3 {[%emt 0:26:25]} Ng5 {[%emt 0:07:32]} 12. h4 {[%emt 0:00:33]} Ne6 {[%emt 0:02:19]} 13. Nc3 {[%emt 0:00:18]} Nexd4 {[%emt 0:07:10]} 14. Nd5 {[%emt 0:01:43]} Qd8 {[%emt 0:07:23]} 15. exd4 {[%emt 0:00:08]} e6 {[%emt 0:00:13]} 16. Ne3 {[%emt 0:03:05]} f5 {[%emt 0:09:13]} 17. Nc2 {[%emt 0:08:25]} f4 {[%emt 0:03:10]} 18. Rb1 {[%emt 0:07:56]} Qf6 {[%emt 0:06:25]} 19. d5 {[%emt 0:05:50]} Ne5 {[%emt 0:00:03]} 20. Bxe5 {[%emt 0:00:10]} Qxe5 {[%emt 0:04:26]} 21. Qd3 {[%emt 0:01:43]} Qc3 {[%emt 0:01:45]} 22. Qxc3 {[%emt 0:01:20]} Bxc3 {[%emt 0:00:04]} 23. dxe6 {[%emt 0:00:11]} Bxe6 {[%emt 0:00:40]} 24. Bxb7 {[%emt 0:00:59]} Rae8 {[%emt 0:00:49]} 25. Rbd1 {[%emt 0:04:28]} Bh3 {[%emt 0:00:29]} 26. Bg2 {[%emt 0:00:55]} Bxg2 {[%emt 0:00:08]} 27. Kxg2 {[%emt 0:00:05]} fxg3 {[%emt 0:00:37]} 28. Rd3 {[%emt 0:02:11]} Bg7 {[%emt 0:00:44]} 29. Kxg3 {[%emt 0:01:52]} Re2 {[%emt 0:00:07]} 30. Ne3 {[%emt 0:00:20]} Rxa2 {[%emt 0:00:45]} 31. Nd5 {[%emt 0:01:25]} Rb2 {[%emt 0:00:40]} 32. Ne7+ {[%emt 0:01:13]} Kf7 {[%emt 0:00:07]} 33. Nc6 {[%emt 0:00:07]} a6 {[%emt 0:00:45]} 34. Re1 {[%emt 0:00:20]} Bf6 {[%emt 0:00:24]} 35. Ree3 {[%emt 0:00:08]} g5 {[%emt 0:00:44]} 36. hxg5 {[%emt 0:00:44]} Bxg5 {[%emt 0:00:04]} 37. f4 {[%emt 0:00:12]} Bd8 {[%emt 0:00:28]} 38. Rxd6 {[%emt 0:00:53]} Rg8+ {[%emt 0:00:55]} 39. Kf3 {[%emt 0:00:03]} Bh4 {[%emt 0:00:21]} 40. Ne5+ {[%emt 0:00:34]} Kf8 {[%emt 0:00:39]} 41. Ke4 {[%emt 0:04:32]} Rg3 {[%emt 0:05:02]} 42. Nf3 {[%emt 0:03:02]} Be7 {[%emt 0:00:31]} 43. Rxa6 {[%emt 0:00:26]} h5 {[%emt 0:02:29]} 44. Kf5 {[%emt 0:02:30]} Bc5 {[%emt 0:06:14]} 45. Rd3 {[%emt 0:01:14]} Rg7 {[%emt 0:00:26]} 46. Ne5 {[%emt 0:00:36]} 1-0

[Event "Vienna Chess Open 2019"]
[Site "Vienna"]
[Date "2019.08.21"]
[Round "6.4"]
[White "Yankelevich, Lev"]
[Black "Ravi, Teja S."]
[Result "1/2-1/2"]
[ECO "B10"]
[WhiteElo "2480"]
[BlackElo "2420"]
[Annotator "ChessBase"]
[PlyCount "26"]
[EventDate "2019.08.17"]
[EventType "swiss"]
[EventCountry "AUT"]
[SourceTitle "playchess.com"]
[Source "ChessBase"]
[SourceQuality "1"]
[TimeControl "40/5400+30:1800+30"]

1. e4 {[%emt 0:00:00]} c6 {[%emt 0:00:35]} 2. Nf3 {[%emt 0:00:00]} d5 {[%emt 0:00:05]} 3. d3 {[%emt 0:00:00]} dxe4 {[%emt 0:06:05]} 4. dxe4 {[%emt 0:00:00]} Qxd1+ {[%emt 0:00:07]} 5. Kxd1 {[%emt 0:00:00]} Nf6 {[%emt 0:00:20]} 6. Nbd2 {[%emt 0:00:27]} Bg4 {[%emt 0:03:34]} 7. Be2 {[%emt 0:00:03]} Nbd7 {[%emt 0:00:10]} 8. Ne1 {[%emt 0:00:04]} Bxe2+ {[%emt 0:09:08]} 9. Kxe2 {[%emt 0:00:07]} Nc5 {[%emt 0:00:19]} 10. f3 {[%emt 0:00:53]} Nfd7 {[%emt 0:05:06]} 11. Nc4 {[%emt 0:09:19]} g6 {[%emt 0:02:52]} 12. h4 {[%emt 0:15:34]} Bg7 {[%emt 0:01:58]} 13. h5 {[%emt 0:00:48]} f5 {[%emt 0:00:13]} 1/2-1/2

[Event "Vienna Chess Open 2019"]
[Site "Vienna"]
[Date "2019.08.21"]
[Round "6.4"]
[White "Buckels, Valentin"]
[Black "Stark, Lars"]
[Result "0-1"]
[ECO "A46"]
[WhiteElo "2453"]
[BlackElo "2362"]
[Annotator "ChessBase"]
[PlyCount "74"]
[EventDate "2019.08.17"]
[EventType "swiss"]
[EventCountry "AUT"]
[SourceTitle "playchess.com"]
[Source "ChessBase"]
[SourceQuality "1"]
[TimeControl "40/5400+30:1800+30"]

1. d4 {[%emt 0:00:01]} Nf6 {[%emt 0:00:00]} 2. Nf3 {[%emt 0:00:32]} e6 {[%emt 0:01:23]} 3. e3 {[%emt 0:00:09]} b6 {[%emt 0:00:04]} 4. Bd3 {[%emt 0:00:21]} Bb7 {[%emt 0:00:04]} 5. O-O {[%emt 0:00:07]} d5 {[%emt 0:00:12]} 6. b3 {[%emt 0:00:34]} Nbd7 {[%emt 0:00:29]} 7. Bb2 {[%emt 0:01:25]} Bd6 {[%emt 0:00:49]} 8. Ne5 {[%emt 0:03:41]} O-O {[%emt 0:00:37]} 9. Qf3 {[%emt 0:07:04]} Ne4 {[%emt 0:01:34]} 10. Qh3 {[%emt 0:04:07]} f5 {[%emt 0:08:32]} 11. f3 {[%emt 0:09:36]} Ng5 {[%emt 0:00:44]} 12. Qg3 {[%emt 0:03:55]} Nxe5 {[%emt 0:02:27]} 13. dxe5 {[%emt 0:00:15]} Bc5 {[%emt 0:00:16]} 14. Kh1 {[%emt 0:03:27]} Nf7 {[%emt 0:01:32]} 15. f4 {[%emt 0:02:32]} Nh6 {[%emt 0:00:47]} 16. Nd2 {[%emt 0:04:09]} Qe7 {[%emt 0:01:31]} 17. h3 {[%emt 0:08:59]} a5 {[%emt 0:01:52]} 18. a3 {[%emt 0:01:34]} Ba6 {[%emt 0:04:53]} 19. Rfe1 {[%emt 0:03:10]} Qd7 {[%emt 0:03:21]} 20. Rad1 {[%emt 0:10:16]} Bxd3 {[%emt 0:01:18]} 21. cxd3 {[%emt 0:00:02]} Qb5 {[%emt 0:00:24]} 22. e4 {[%emt 0:04:47]} dxe4 {[%emt 0:05:19]} 23. dxe4 {[%emt 0:00:50]} Rad8 {[%emt 0:00:04]} 24. Qc3 {[%emt 0:19:01]} Rd3 {[%emt 0:01:51]} 25. Qc2 {[%emt 0:00:22]} Rfd8 {[%emt 0:03:06]} 26. Nf3 {[%emt 0:06:49]} fxe4 {[%emt 0:03:54]} 27. Ng5 {[%emt 0:00:05]} Rxd1 {[%emt 0:00:26]} 28. Rxd1 {[%emt 0:00:07]} Rxd1+ {[%emt 0:00:03]} 29. Qxd1 {[%emt 0:00:06]} Qd3 {[%emt 0:00:04]} 30. Qxd3 {[%emt 0:04:26]} exd3 {[%emt 0:00:04]} 31. Ne4 {[%emt 0:00:55]} Be3 {[%emt 0:04:31]} 32. g3 {[%emt 0:00:59]} d2 {[%emt 0:01:00]} 33. Nc3 {[%emt 0:00:02]} Bd4 {[%emt 0:00:11]} 34. Nd1 {[%emt 0:00:01]} Bxb2 {[%emt 0:00:05]} 35. Nxb2 {[%emt 0:00:01]} Nf5 {[%emt 0:00:05]} 36. Nd1 {[%emt 0:00:09]} Nxg3+ {[%emt 0:00:11]} 37. Kg2 {[%emt 0:00:07]} Ne2 {[%emt 0:00:25]} 0-1

[Event "Vienna Chess Open 2019"]
[Site "Vienna"]
[Date "2019.08.21"]
[Round "6.4"]
[White "Yurtseven, Melih"]
[Black "Losonczi, Marcell"]
[Result "1-0"]
[ECO "E71"]
[WhiteElo "2396"]
[BlackElo "2276"]
[Annotator "NA"]
[PlyCount "77"]
[EventDate "2019.08.17"]
[EventType "swiss"]
[EventCountry "AUT"]
[SourceTitle "playchess.com"]
[Source "ChessBase"]
[SourceQuality "1"]
[TimeControl "40/5400+30:1800+30"]

1. d4 {[%emt 0:00:00]} Nf6 {[%emt 0:00:00]} 2. c4 {[%emt 0:00:00]} g6 {[%emt 0:00:00]} 3. Nc3 {[%emt 0:00:00]} Bg7 {[%emt 0:00:00]} 4. e4 {[%emt 0:00:04]} d6 {[%emt 0:00:00]} 5. h3 {[%emt 0:00:07]} O-O {[%emt 0:00:33]} 6. Be3 {[%emt 0:00:08]} e5 {[%emt 0:01:15]} 7. d5 {[%emt 0:00:08]} Na6 {[%emt 0:02:23]} 8. g4 {[%emt 0:00:25]} Nc5 {[%emt 0:00:41]} 9. f3 {[%emt 0:00:12]} a5 {[%emt 0:01:51]} 10. Qd2 {[%emt 0:16:11]} h5 {[%emt 0:19:44]} 11. Nge2 {[%emt 0:02:37]} Nh7 {[%emt 0:03:33]} 12. O-O-O {[%emt 0:08:35]} h4 {[%emt 0:04:49]} 13. g5 {[%emt 0:00:02]} f6 {[%emt 0:14:58]} 14. gxf6 {[%emt 0:00:16]} Rxf6 {[%emt 0:00:13]} 15. Rg1 {[%emt 0:13:36]} Qe8 {[%emt 0:08:39]} 16. f4 {[%emt 0:08:39]} exf4 {[%emt 0:00:31]} 17. Nxf4 {[%emt 0:02:32]} Qf7 {[%emt 0:05:34]} 18. Be2 {[%emt 0:05:46]} Rxf4 {[%emt 0:03:56]} 19. Bxf4 {[%emt 0:01:23]} Bxc3 {[%emt 0:00:08]} 20. bxc3 {[%emt 0:00:19]} Nxe4 {[%emt 0:00:11]} 21. Qe3 {[%emt 0:00:46]} Bf5 {[%emt 0:00:45]} 22. Bg4 {[%emt 0:09:35]} Re8 {[%emt 0:01:14]} 23. Bxf5 {[%emt 0:00:45]} Qxf5 {[%emt 0:00:08]} 24. Rdf1 {[%emt 0:00:48]} Nef6 {[%emt 0:07:00]} 25. Qd2 {[%emt 0:02:04]} Qh5 {[%emt 0:03:50]} 26. Qd1 {[%emt 0:07:10]} Qxd1+ {[%emt 0:01:26]} 27. Kxd1 {[%emt 0:00:12]} Kg7 {[%emt 0:02:04]} 28. Re1 {[%emt 0:05:56]} Ne4 {[%emt 0:01:14]} 29. Kc2 {[%emt 0:00:03]} Nhf6 {[%emt 0:08:03]} 30. Be3 {[%emt 0:03:59]} Kf7 {[%emt 0:02:50]} 31. Ref1 {[%emt 0:03:01]} c5 {[%emt 0:04:58]} 32. dxc6 {[%emt 0:05:21]} bxc6 {[%emt 0:00:06]} 33. Bd4 {[%emt 0:00:49]} c5 {[%emt 0:00:32]} 34. Bxf6 {[%emt 0:00:26]} Nxf6 {[%emt 0:00:01]} 35. Rf4 {[%emt 0:02:25]} Re4 {[%emt 0:01:09]} 36. Rxe4 {[%emt 0:00:12]} Nxe4 {[%emt 0:00:02]} 37. Rg4 {[%emt 0:00:28]} Nf6 {[%emt 0:00:34]} 38. Rxh4 {[%emt 0:00:36]} g5 {[%emt 0:00:07]} 39. Rh8 {[%emt 0:00:08]} 1-0

[Event "Vienna Chess Open 2019"]
[Site "Vienna"]
[Date "2019.08.21"]
[Round "6.5"]
[White "Bakhmatsky, Vladislav"]
[Black "Gungl, Theo"]
[Result "0-1"]
[ECO "B90"]
[WhiteElo "2442"]
[BlackElo "2344"]
[Annotator "NA"]
[PlyCount "44"]
[EventDate "2019.08.17"]
[EventType "swiss"]
[EventCountry "AUT"]
[SourceTitle "playchess.com"]
[Source "ChessBase"]
[SourceQuality "1"]
[TimeControl "40/5400+30:1800+30"]

1. e4 {[%emt 0:00:00]} c5 {[%emt 0:00:00]} 2. Nf3 {[%emt 0:00:00]} d6 {[%emt 0:00:00]} 3. d4 {[%emt 0:00:30]} cxd4 {[%emt 0:00:00]} 4. Nxd4 {[%emt 0:00:34]} Nf6 {[%emt 0:00:00]} 5. Nc3 {[%emt 0:00:35]} a6 {[%emt 0:00:00]} 6. h4 {[%emt 0:03:29]} b5 {[%emt 0:06:14]} 7. Nd5 {[%emt 0:19:14]} e6 {[%emt 0:10:41]} 8. Nxf6+ {[%emt 0:01:42]} Qxf6 {[%emt 0:01:19]} 9. g4 {[%emt 0:06:08]} Bb7 {[%emt 0:02:59]} 10. Bg2 {[%emt 0:02:04]} Nd7 {[%emt 0:17:21]} 11. Be3 {[%emt 0:32:15]} Nc5 {[%emt 0:22:08]} 12. f3 {[%emt 0:10:27]} d5 {[%emt 0:02:50]} 13. g5 {[%emt 0:03:04]} Qd8 {[%emt 0:00:38]} 14. e5 {[%emt 0:03:33]} Qc7 {[%emt 0:01:43]} 15. f4 {[%emt 0:00:15]} Na4 {[%emt 0:00:49]} 16. Rb1 {[%emt 0:00:40]} Nxb2 {[%emt 0:03:33]} 17. Rxb2 {[%emt 0:00:04]} Qc3+ {[%emt 0:00:05]} 18. Kf2 {[%emt 0:00:15]} Qxb2 {[%emt 0:00:09]} 19. f5 {[%emt 0:00:01]} exf5 {[%emt 0:03:54]} 20. Qd3 {[%emt 0:01:26]} Bc5 {[%emt 0:02:27]} 21. Rd1 {[%emt 0:01:42]} Rc8 {[%emt 0:03:06]} 22. Rd2 {[%emt 0:00:20]} f4 {[%emt 0:00:56]} 0-1

[Event "Vienna Chess Open 2019"]
[Site "Vienna"]
[Date "2019.08.21"]
[Round "6.5"]
[White "Handler, Lukas"]
[Black "Fedorovsky, Michael"]
[Result "1-0"]
[ECO "D37"]
[WhiteElo "2411"]
[BlackElo "2441"]
[Annotator "NA"]
[PlyCount "83"]
[EventDate "2019.08.17"]
[EventType "swiss"]
[EventCountry "AUT"]
[SourceTitle "playchess.com"]
[Source "ChessBase"]
[SourceQuality "1"]
[TimeControl "40/5400+30:1800+30"]

1. d4 {[%emt 0:00:00]} Nf6 {[%emt 0:00:00]} 2. c4 {[%emt 0:00:00]} e6 {[%emt 0:00:00]} 3. Nf3 {[%emt 0:00:00]} d5 {[%emt 0:00:00]} 4. Nc3 {[%emt 0:00:00]} dxc4 {[%emt 0:00:00]} 5. e4 {[%emt 0:00:55]} Bb4 {[%emt 0:00:08]} 6. Bg5 {[%emt 0:00:06]} c5 {[%emt 0:00:26]} 7. Bxc4 {[%emt 0:01:02]} cxd4 {[%emt 0:00:11]} 8. Nxd4 {[%emt 0:00:21]} Bxc3+ {[%emt 0:00:27]} 9. bxc3 {[%emt 0:00:07]} Qa5 {[%emt 0:00:16]} 10. Bd2 {[%emt 0:03:11]} Nxe4 {[%emt 0:22:45]} 11. Qg4 {[%emt 0:00:29]} Nxd2 {[%emt 0:00:05]} 12. Qxg7 {[%emt 0:00:11]} Nxc4 {[%emt 0:02:50]} 13. Qxh8+ {[%emt 0:00:08]} Ke7 {[%emt 0:00:36]} 14. O-O {[%emt 0:00:15]} Nd7 {[%emt 0:01:41]} 15. f4 {[%emt 0:00:17]} Nf6 {[%emt 0:06:15]} 16. Rae1 {[%emt 0:02:59]} Nd2 {[%emt 0:16:58]} 17. Re5 {[%emt 0:30:44]} Qd8 {[%emt 0:01:54]} 18. Qxd8+ {[%emt 0:03:36]} Kxd8 {[%emt 0:00:04]} 19. Rd1 {[%emt 0:00:23]} Nd7 {[%emt 0:10:05]} 20. Rxd2 {[%emt 0:06:06]} Nxe5 {[%emt 0:00:56]} 21. Nc6+ {[%emt 0:00:35]} Kc7 {[%emt 0:00:05]} 22. Nxe5 {[%emt 0:00:04]} f6 {[%emt 0:00:38]} 23. Ng4 {[%emt 0:00:18]} e5 {[%emt 0:01:39]} 24. Nxf6 {[%emt 0:00:23]} exf4 {[%emt 0:00:10]} 25. Nxh7 {[%emt 0:02:00]} Be6 {[%emt 0:01:49]} 26. Ng5 {[%emt 0:01:52]} Bc4 {[%emt 0:02:42]} 27. Nh3 {[%emt 0:09:45]} f3 {[%emt 0:01:42]} 28. gxf3 {[%emt 0:00:41]} Re8 {[%emt 0:06:30]} 29. Ng5 {[%emt 0:10:54]} Re5 {[%emt 0:12:46]} 30. h4 {[%emt 0:03:13]} Ra5 {[%emt 0:00:06]} 31. Kf2 {[%emt 0:03:33]} Bxa2 {[%emt 0:00:21]} 32. f4 {[%emt 0:00:16]} Bb1 {[%emt 0:03:19]} 33. h5 {[%emt 0:02:43]} Ra6 {[%emt 0:03:38]} 34. Kg3 {[%emt 0:02:00]} Rc6 {[%emt 0:01:04]} 35. Kg4 {[%emt 0:00:35]} a5 {[%emt 0:01:56]} 36. f5 {[%emt 0:02:19]} a4 {[%emt 0:01:38]} 37. Ne6+ {[%emt 0:02:49]} Kb8 {[%emt 0:00:05]} 38. Rd8+ {[%emt 0:06:10]} Ka7 {[%emt 0:00:04]} 39. h6 {[%emt 0:00:16]} Rxc3 {[%emt 0:02:27]} 40. h7 {[%emt 0:00:31]} Rh3 {[%emt 0:00:10]} 41. h8=Q {[%emt 0:31:02]} Rxh8 {[%emt 0:30:07]} 42. Rxh8 {[%emt 0:00:03]} 1-0

[Event "Vienna Chess Open 2019"]
[Site "Vienna"]
[Date "2019.08.21"]
[Round "6.5"]
[White "Kaasen, Tor Fredrik"]
[Black "Pisu, Robert-Daniel"]
[Result "1-0"]
[ECO "E06"]
[WhiteElo "2373"]
[BlackElo "2252"]
[Annotator "NA"]
[PlyCount "75"]
[EventDate "2019.08.17"]
[EventType "swiss"]
[EventCountry "AUT"]
[SourceTitle "playchess.com"]
[Source "ChessBase"]
[SourceQuality "1"]
[TimeControl "40/5400+30:1800+30"]

1. d4 {[%emt 0:00:00]} Nf6 {[%emt 0:00:00]} 2. c4 {[%emt 0:00:00]} e6 {[%emt 0:00:22]} 3. Nf3 {[%emt 0:00:00]} d5 {[%emt 0:00:15]} 4. g3 {[%emt 0:00:40]} Be7 {[%emt 0:01:38]} 5. Bg2 {[%emt 0:00:20]} O-O {[%emt 0:00:08]} 6. O-O {[%emt 0:00:14]} dxc4 {[%emt 0:00:07]} 7. Qc2 {[%emt 0:00:32]} a6 {[%emt 0:00:07]} 8. a4 {[%emt 0:00:25]} Bd7 {[%emt 0:01:05]} 9. Qxc4 {[%emt 0:00:11]} Bc6 {[%emt 0:00:38]} 10. Bf4 {[%emt 0:00:37]} Bd6 {[%emt 0:17:03]} 11. Nc3 {[%emt 0:01:20]} Bxf4 {[%emt 0:37:25]} 12. gxf4 {[%emt 0:00:10]} Nd5 {[%emt 0:00:47]} 13. e3 {[%emt 0:03:18]} Nxc3 {[%emt 0:04:09]} 14. bxc3 {[%emt 0:02:44]} Nd7 {[%emt 0:06:18]} 15. Qd3 {[%emt 0:04:03]} Nf6 {[%emt 0:07:07]} 16. a5 {[%emt 0:01:54]} Be4 {[%emt 0:01:09]} 17. Qe2 {[%emt 0:01:41]} c5 {[%emt 0:00:43]} 18. Ne5 {[%emt 0:03:09]} Bxg2 {[%emt 0:02:13]} 19. Kxg2 {[%emt 0:00:06]} cxd4 {[%emt 0:00:05]} 20. cxd4 {[%emt 0:00:07]} Qd5+ {[%emt 0:00:28]} 21. Qf3 {[%emt 0:00:24]} Rac8 {[%emt 0:00:51]} 22. Qxd5 {[%emt 0:05:34]} Nxd5 {[%emt 0:00:11]} 23. Nd7 {[%emt 0:00:08]} Rc2 {[%emt 0:01:13]} 24. Kf3 {[%emt 0:00:43]} Rd8 {[%emt 0:09:22]} 25. Nc5 {[%emt 0:00:22]} b6 {[%emt 0:00:06]} 26. axb6 {[%emt 0:01:19]} Nxb6 {[%emt 0:00:02]} 27. Rxa6 {[%emt 0:00:17]} Nc4 {[%emt 0:00:22]} 28. Rfa1 {[%emt 0:01:00]} g6 {[%emt 0:01:23]} 29. Ra7 {[%emt 0:07:45]} Rb8 {[%emt 0:01:06]} 30. Ra8 {[%emt 0:19:15]} Rxa8 {[%emt 0:00:11]} 31. Rxa8+ {[%emt 0:00:05]} Kg7 {[%emt 0:00:02]} 32. Rc8 {[%emt 0:00:17]} Nd2+ {[%emt 0:02:24]} 33. Kg2 {[%emt 0:04:03]} Kh6 {[%emt 0:03:39]} 34. Rc7 {[%emt 0:03:11]} Ne4 {[%emt 0:00:08]} 35. Rxf7 {[%emt 0:00:34]} Nxf2 {[%emt 0:04:00]} 36. Nxe6 {[%emt 0:01:34]} Nd1+ {[%emt 0:00:16]} 37. Kf3 {[%emt 0:03:20]} Rf2+ {[%emt 0:00:06]} 38. Kg3 {[%emt 0:00:34]} 1-0